fUSD/lending_fUSD_20240802
["ID","MTS","AMOUNT","RATE_DAILY","PERIOD"]
[333892290,1722606633084,-169.46309799,0.000109,2]
[333892291,1722606633094,-691.9996022,0.000109,2]
[333892292,1722606633103,-300.16543082,0.000109,2]
[333892293,1722606633113,-500.0,0.00010911,2]
[333892294,1722606633123,-500.0,0.00010912,2]
[333892295,1722606633132,-500.0,0.00010912,2]
[333892296,1722606633142,-691.99960219,0.0001092,2]
[333892297,1722606633151,-691.99960219,0.0001094,2]
[333892298,1722606633161,-250.0,0.00010959,2]
[333892299,1722606633170,-4036.8357118,0.0001099,2]
[333892300,1722606633180,-153.44,0.0001099,2]
[333892301,1722606633189,-210.47845723,0.00010999,2]
[333892302,1722606633199,-873.71573616,0.00010999,2]
[333892303,1722606633208,-499.99,0.00010999,2]
[333892304,1722606633218,-1005.27881526,0.00011,2]
[333892305,1722606633227,-142432.84459212,0.00011,2]
[333892306,1722606633241,-40467.07974761,0.00011,2]
[333892307,1722606633253,-392.178,0.00011,2]
[333892308,1722606633265,-253.51005773,0.00011,2]
[333892309,1722606633276,-400.116003,0.00011,2]
[333892310,1722606633288,-1731.28504997,0.00011,2]
[333892311,1722606633315,-1001.07908928,0.00011,2]
[333892317,1722606638653,-591.67267302,0.00010997,2]
[333892318,1722606638663,-436.85786808,0.00010999,2]
[333892319,1722606638672,-1680.95609849,0.00011,2]
[333892320,1722606638684,-8491.66447959,0.00011,2]
[333892321,1722606638696,-490.29,0.00011,2]
[333892323,1722606638707,-421.41370535,0.00011,2]
[333892324,1722606638718,-4120.2879975,0.00011,2]
[333892326,1722606638729,-651.67972126,0.00011,2]
[333892327,1722606638747,-2364.01451426,0.00011,2]
[333892328,1722606638758,-724.97184001,0.00011,2]
[333892329,1722606638769,-600.0,0.00011,2]
[333892330,1722606638780,-7020.43068149,0.00011,2]
[333892331,1722606638791,-614.32,0.00011,2]
[333892332,1722606638802,-3024.99420525,0.00011,2]
[333892333,1722606638813,-4023.822,0.00011,2]
[333892334,1722606638825,-285.49172499,0.00011,2]
[333892335,1722606638999,-2444.07,0.00011,2]
[333892336,1722606639011,-433.88987059,0.00011,2]
[333892337,1722606639022,-817.05291874,0.00011,2]
[333892338,1722606639033,-713.52089121,0.00011,2]
[333892339,1722606639046,-76383.23041511,0.00011,2]
[333892340,1722606639056,-839133.67015998,0.00011,2]
[333892341,1722606639065,-158.0471,0.00011,2]
[333892342,1722606639075,-153.44,0.00011022,2]
[333892343,1722606639084,-2024.3975896,0.00011025,2]
[333892344,1722606639093,-12377.243368,0.00011025,2]
[333892345,1722606639102,-1518.6219156,0.00011032,2]
[333892346,1722606639112,-75383.8771805,0.00011032,2]
[333892347,1722606639122,-345.07666,0.0001104,2]
[333892348,1722606639133,-8025.1127389,0.00011048,2]
[333892349,1722606639143,-260.73,0.0001107,2]
[333892350,1722606639154,-155.09718788,0.00011105,2]
[333892351,1722606639164,-260.50223457,0.00011105,2]
[333892352,1722606639173,-7874.07227386,0.00011105,2]
[333892353,1722606639182,-203.35667664,0.00011105,2]
[333892354,1722606639192,-367.8057843,0.00011105,2]
[333892355,1722606639201,-205.90832009,0.00011105,2]
[333892356,1722606639214,-1000.0,0.00011411,2]
[333892357,1722606639225,-174.08,0.00011427,2]
[333892358,1722606639235,-420.0,0.00011484,2]
[333892359,1722606639247,-236.0,0.00011487,2]
[333892360,1722606639257,-1032.99872945,0.00011961,2]
[333892361,1722606639267,-550.0,0.00012,2]
[333892362,1722606639276,-5759.16,0.0001236,2]
[333892363,1722606639286,-260.73,0.00012454,2]
[333892364,1722606639295,-587.0,0.00012626,2]
[333892365,1722606639306,-174.08,0.00012697,2]
[333892366,1722606639316,-155.0,0.00012818,2]
[333892367,1722606639326,-155.0,0.00012818,2]
[333892368,1722606639336,-1000.0,0.00012838,2]
[333892369,1722606639345,-354.96,0.0001294,2]
[333892370,1722606639356,-1032.99872945,0.00013022,2]
[333892371,1722606639369,-3000.0,0.000132,2]
[333892372,1722606639378,-405.9179039,0.0001331,2]
[333892373,1722606639387,-1000.0,0.00013333,2]
[333892374,1722606639397,-1000.0,0.00013333,2]
[333892375,1722606639406,-1000.0,0.00013333,2]
[333892376,1722606639415,-1000.0,0.00013333,2]
[333892377,1722606639425,-1000.0,0.00013333,2]
[333892378,1722606639434,-1000.0,0.00013333,2]
[333892379,1722606639445,-1000.0,0.00013333,2]
[333892380,1722606639455,-1000.0,0.00013333,2]
[333892381,1722606639464,-1000.0,0.00013333,2]
[333892382,1722606639474,-1000.0,0.00013333,2]
[333892383,1722606639483,-1000.0,0.00013333,2]
[333892384,1722606639494,-1000.0,0.00013333,2]
[333892385,1722606639503,-1000.0,0.00013333,2]
[333892386,1722606639513,-1000.0,0.00013333,2]
[333892387,1722606639522,-1000.0,0.00013333,2]
[333892388,1722606639531,-1000.0,0.00013333,2]
[333892389,1722606639540,-1000.0,0.00013333,2]
[333892390,1722606639549,-1000.0,0.00013333,2]
[333892391,1722606639558,-1000.0,0.00013333,2]
[333892392,1722606639567,-1000.0,0.00013333,2]
[333892393,1722606639577,-1000.0,0.00013333,2]
[333892394,1722606639587,-1000.0,0.00013333,2]
[333892395,1722606639596,-1000.0,0.00013333,2]
[333892396,1722606639606,-1000.0,0.00013333,2]
[333892397,1722606639615,-1000.0,0.00013333,2]
[333892398,1722606639624,-1000.0,0.00013333,2]
[333892399,1722606639635,-1000.0,0.00013333,2]
[333892400,1722606639645,-825.0,0.00013333,2]
[333892401,1722606639654,-254.95149509,0.00013378,2]
[333892402,1722606639664,-254.95149509,0.00013378,2]
[333892403,1722606639674,-5800.87194486,0.00013378,2]
[333892404,1722606639684,-14052.3218744,0.000138,2]
[333892405,1722606639693,-260.73,0.00013838,2]
[333892406,1722606639703,-823.0,0.00013883,2]
[333892407,1722606639713,-759.9667326,0.00013896,2]
[333892408,1722606639722,-295.83633651,0.00013897,2]
[333892409,1722606639733,-162183.98232537,0.000139,2]
[333892410,1722606639749,-28818.116794,0.000139,2]
[333892416,1722606640430,-777.1570276,0.000139,2]
[333892417,1722606640443,-3485.62752742,0.000139,2]
[333892418,1722606640456,-492.62681269,0.000139,2]
[333892419,1722606640468,-1630.6,0.000139,2]
[333892420,1722606640480,-3364.54855239,0.000139,2]
[333892421,1722606640494,-1072.66280005,0.000139,2]
[333892422,1722606640506,-3868.2,0.000139,2]
[333892423,1722606640518,-1638.159793,0.000139,2]
[333892424,1722606640529,-1065.48459266,0.000139,2]
[333892425,1722606640540,-952.114983,0.000139,2]
[333892426,1722606640656,-218.42893404,0.00010999,2]
[333892427,1722606640667,-435.20106596,0.000139,2]
[333892428,1722606640815,-1300.02632763,0.000139,2]
[333892429,1722606640932,-768.95049403,0.000139,2]
[333892430,1722606640944,-9211.72604937,0.000139,2]
[333892431,1722606640955,-8656.44249483,0.000139,2]
[333892432,1722606640964,-151.0,0.000139,2]
[333892433,1722606640974,-169.54,0.00013914,2]
[333892434,1722606640984,-174.08,0.00013967,2]
[333892435,1722606640994,-163.53,0.00013973,2]
[333892436,1722606641004,-603.43,0.00013973,2]
[333892437,1722606641013,-150.41,0.00013973,2]
[333892438,1722606641022,-600.0,0.00014,2]
[333892439,1722606641032,-151.0,0.00014082,2]
[333892440,1722606641041,-151.0,0.00014082,2]
[333892441,1722606641051,-1032.99872945,0.00014082,2]
[333892442,1722606641060,-1000.0,0.00014264,2]
[333892443,1722606641070,-300.1654308,0.00014265,2]
[333892444,1722606641080,-1670.0,0.00014724,2]
[333892445,1722606641089,-5125.0,0.00014724,2]
[333892446,1722606641098,-5833.0,0.00014724,2]
[333892447,1722606641108,-8103.87856573,0.00014724,2]
[333892448,1722606641120,-3484.49543427,0.00014724,2]
[333892449,1722606641130,-1032.99872945,0.00015143,2]
[333892450,1722606641139,-354.96,0.00015203,2]
[333892451,1722606641149,-260.73,0.00015221,2]
[333892452,1722606641158,-174.08,0.00015236,2]
[333892453,1722606641168,-1152.0,0.00015264,2]
[333892454,1722606641177,-2816.03436044,0.000153,2]
[333892455,1722606641204,-543.43566378,0.000153,2]
[333892456,1722606641215,-333.52997578,0.000153,2]
[333892457,1722606641224,-534.23561753,0.000154,2]
[333892458,1722606641236,-392.76438247,0.000154,2]
[333892459,1722606641248,-1000.0,0.0001569,2]
[333892460,1722606641257,-167.0,0.00015831,2]
[333892461,1722606641266,-1951.0,0.000159,2]
[333892462,1722606641276,-1000.0,0.00016,3]
[333892463,1722606641286,-158.0471,0.00016,2]
[333892464,1722606641295,-1032.99872945,0.00016204,2]
[333892465,1722606641305,-260.73,0.00016605,2]
[333892466,1722606641314,-1608.0,0.00016783,2]
[333892467,1722606641324,-1000.0,0.00017117,2]
[333892468,1722606641334,-1000.0,0.00017187,2]
[333892469,1722606641343,-150.0,0.0001726,2]
[333892470,1722606641353,-151.96,0.0001726,2]
[333892471,1722606641366,-1032.99872945,0.00017265,2]
[333892472,1722606641376,-354.96,0.00017467,2]
[333892473,1722606641385,-300.1654308,0.0001763,2]
[333892474,1722606641395,-546.25951374,0.00017739,2]
[333892475,1722606641404,-546.25951374,0.00017782,2]
[333892476,1722606641413,-46145.70308892,0.0001788,2]
[333892477,1722606641425,-449.03088406,0.0001788,2]
[333892478,1722606641545,-14732.19448898,0.0001788,2]
[333892479,1722606641556,-639.14654176,0.0001788,2]
[333892485,1722606643727,-6395.3221374,0.00011015,2]
[333892486,1722606643737,-162.020217,0.000139,2]
[333892487,1722606643753,-63396.65764565,0.0001788,2]
[333892488,1722606643766,-18564.32921655,0.0001788,2]
[333892489,1722606643775,-151.0,0.0001788,2]
[333892490,1722606643785,-151.0,0.0001788,2]
[333892491,1722606643794,-151.0,0.0001788,2]
[333892492,1722606643804,-151.0,0.0001788,2]
[333892493,1722606643814,-222.06151372,0.00017898,2]
[333892494,1722606643824,-1100.0,0.000179,6]
[333892495,1722606643833,-19900.0,0.00018,2]
[333892496,1722606643843,-371.71125404,0.00018,2]
[333892497,1722606643853,-1032.99872945,0.00018325,2]
[333892498,1722606643863,-1000.0,0.000185,2]
[333892499,1722606643872,-1951.7891487,0.000186,2]
[333892500,1722606643882,-1000.0,0.000187,2]
[333892501,1722606643891,-1500.0,0.000187,6]
[333892502,1722606643902,-151.0,0.000187,2]
[333892503,1722606643911,-1000.0,0.000188,2]
[333892504,1722606643921,-1000.0,0.000188,2]
[333892505,1722606643931,-1900.0,0.000188,6]
[333892506,1722606643941,-18133.09883,0.00018859,2]
[333892507,1722606643951,-160.640403,0.00018859,2]
[333892509,1722606643961,-150.340825,0.00018859,2]
[333892511,1722606643971,-188.607338,0.00018859,2]
[333892513,1722606643981,-183.170807,0.00018859,2]
[333892515,1722606643991,-3190.700008,0.00018859,2]
[333892517,1722606644005,-5578.972806,0.00018859,2]
[333892519,1722606644014,-408.49082,0.00018859,2]
[333892521,1722606644023,-20338.616413,0.00018859,2]
[333892523,1722606644033,-500.109181,0.00018859,2]
[333892525,1722606644042,-28197.507616,0.00018859,2]
[333892527,1722606644052,-158.901933,0.00018859,2]
[333892528,1722606644062,-456.34796435,0.00018859,2]
[333892529,1722606644071,-300.0,0.000189,6]
[333892530,1722606644081,-153.44,0.0001899,2]
[333892531,1722606644091,-151.0,0.00018999,2]
[333892532,1722606644101,-4187.34504777,0.00019,2]
[333892533,1722606644111,-6297.57,0.00019,2]
[333892534,1722606644123,-92254.0204324,0.00019064,3]
[333892535,1722606644133,-151.0,0.00019064,2]
[333892536,1722606644143,-151.0,0.00019064,2]
[333892537,1722606644153,-151.0,0.00019064,2]
[333892538,1722606644163,-420.52,0.00019078,2]
[333892539,1722606644172,-131360.20815233,0.00019078,7]
[333892540,1722606644182,-168.79765688,0.00019078,2]
[333892541,1722606644192,-1020.55472423,0.00019078,2]
[333892542,1722606644202,-158.95515432,0.00019078,2]
[333892543,1722606644212,-3256.4883,0.00019078,2]
[333892544,1722606644221,-151.0,0.00019094,2]
[333892545,1722606644231,-222.725133,0.00019094,2]
[333892546,1722606644244,-229.294383,0.00019094,2]
[333892547,1722606644258,-18133.09883,0.00019094,2]
[333892548,1722606644267,-183.170807,0.00019094,2]
[333892549,1722606644277,-3190.700008,0.00019094,2]
[333892550,1722606644286,-5578.972806,0.00019094,2]
[333892551,1722606644296,-20338.616413,0.00019094,2]
[333892552,1722606644306,-408.49082,0.00019094,2]
[333892553,1722606644315,-500.109181,0.00019094,2]
[333892554,1722606644325,-28197.507616,0.00019094,2]
[333892555,1722606644335,-494.0,0.000191,2]
[333892556,1722606644345,-591.67267302,0.00019175,2]
[333892557,1722606644355,-500.0,0.00019178,2]
[333892558,1722606644365,-500.0,0.00019178,2]
[333892559,1722606644376,-552.80998123,0.00019178,2]
[333892560,1722606644386,-500.0,0.00019178,2]
[333892561,1722606644395,-500.0,0.00019178,2]
[333892562,1722606644406,-500.0,0.00019178,2]
[333892563,1722606644415,-500.0,0.00019178,2]
[333892564,1722606644425,-500.0,0.00019178,2]
[333892565,1722606644435,-500.0,0.00019178,2]
[333892566,1722606644447,-500.0,0.00019178,2]
[333892567,1722606644458,-500.0,0.00019178,2]
[333892568,1722606644468,-534.36,0.00019178,2]
[333892569,1722606644478,-500.0,0.00019178,2]
[333892570,1722606644487,-1240.41,0.00019178,2]
[333892571,1722606644502,-500.0,0.00019178,2]
[333892572,1722606644511,-1727.65,0.00019178,2]
[333892573,1722606644521,-500.0,0.00019178,2]
[333892574,1722606644530,-500.0,0.00019178,2]
[333892575,1722606644539,-500.0,0.00019178,2]
[333892576,1722606644549,-500.0,0.00019178,2]
[333892577,1722606644560,-2134.92,0.00019178,2]
[333892578,1722606644569,-500.0,0.00019178,2]
[333892579,1722606644579,-500.0,0.00019178,2]
[333892580,1722606644588,-500.0,0.00019178,2]
[333892581,1722606644598,-500.0,0.00019178,2]
[333892582,1722606644607,-2102.32,0.00019178,2]
[333892583,1722606644617,-500.0,0.00019178,2]
[333892584,1722606644626,-514.69,0.00019178,2]
[333892585,1722606644635,-500.0,0.00019178,2]
[333892586,1722606644645,-717.66,0.00019178,2]
[333892587,1722606644654,-1556.41,0.00019178,2]
[333892588,1722606644664,-500.0,0.00019178,2]
[333892589,1722606644673,-500.0,0.00019178,2]
[333892590,1722606644683,-1555.09,0.00019178,2]
[333892591,1722606644692,-500.0,0.00019178,2]
[333892592,1722606644702,-500.0,0.00019178,2]
[333892593,1722606644711,-876.88,0.00019178,2]
[333892594,1722606644721,-500.0,0.00019178,2]
[333892595,1722606644731,-883.04,0.00019178,2]
[333892596,1722606644740,-500.0,0.00019178,2]
[333892597,1722606644752,-500.0,0.00019178,2]
[333892598,1722606644761,-503.95,0.00019178,2]
[333892599,1722606644771,-804.87,0.00019178,2]
[333892600,1722606644780,-500.0,0.00019178,2]
[333892601,1722606644789,-500.0,0.00019178,2]
[333892602,1722606644799,-500.0,0.00019178,2]
[333892603,1722606644809,-1155.81,0.00019178,2]
[333892604,1722606644818,-500.0,0.00019178,2]
[333892605,1722606644827,-688.33,0.00019178,2]
[333892606,1722606644837,-500.0,0.00019178,2]
[333892607,1722606644846,-500.0,0.00019178,2]
[333892608,1722606644856,-609.19,0.00019178,2]
[333892609,1722606644866,-474.26552014,0.00019178,2]
[333892610,1722606644876,-500.0,0.00019178,2]
[333892611,1722606644885,-1843.16,0.00019178,2]
[333892612,1722606644894,-500.0,0.00019178,2]
[333892613,1722606644904,-1652.49,0.00019178,2]
[333892614,1722606644913,-755.4,0.00019178,2]
[333892615,1722606644922,-500.0,0.00019178,2]
[333892616,1722606644931,-500.0,0.00019178,2]
[333892617,1722606644940,-500.0,0.00019178,2]
[333892618,1722606644950,-1020.6,0.00019178,2]
[333892619,1722606644959,-996.94,0.00019178,2]
[333892620,1722606644968,-1906.54,0.00019178,2]
[333892621,1722606644978,-500.0,0.00019178,2]
[333892622,1722606644987,-500.0,0.00019178,2]
[333892623,1722606644998,-707.47,0.00019178,2]
[333892624,1722606645008,-508.9,0.00019178,2]
[333892625,1722606645017,-881.45,0.00019178,2]
[333892626,1722606645027,-500.0,0.00019178,2]
[333892627,1722606645036,-500.0,0.00019178,2]
[333892628,1722606645046,-628.80411964,0.00019178,2]
[333892629,1722606645055,-500.0,0.00019178,2]
[333892630,1722606645064,-2787.65,0.00019178,2]
[333892631,1722606645073,-2339.49,0.00019178,2]
[333892632,1722606645082,-1382.16,0.00019178,2]
[333892633,1722606645091,-995.18,0.00019178,2]
[333892634,1722606645101,-500.0,0.00019178,2]
[333892635,1722606645110,-500.0,0.00019178,2]
[333892636,1722606645120,-500.0,0.00019178,2]
[333892637,1722606645129,-971.37,0.00019178,2]
[333892638,1722606645138,-532.62,0.00019178,2]
[333892639,1722606645148,-1280.88,0.00019178,2]
[333892640,1722606645157,-675.84,0.00019178,2]
[333892641,1722606645167,-2057.74,0.00019178,2]
[333892642,1722606645176,-3404.08,0.00019178,2]
[333892643,1722606645185,-500.0,0.00019178,2]
[333892644,1722606645194,-1055.52,0.00019178,2]
[333892645,1722606645204,-500.0,0.00019178,2]
[333892646,1722606645213,-516.02438719,0.00019178,2]
[333892647,1722606645222,-1520.99,0.00019178,2]
[333892648,1722606645231,-1107.52,0.00019178,2]
[333892649,1722606645241,-974.0,0.00019178,2]
[333892650,1722606645252,-555.89093315,0.00019178,2]
[333892651,1722606645262,-1117.81,0.00019178,2]
[333892652,1722606645271,-1119.6,0.00019178,2]
[333892653,1722606645281,-1482.98,0.00019178,2]
[333892654,1722606645290,-500.0,0.00019178,2]
[333892655,1722606645299,-1365.9,0.00019178,2]
[333892656,1722606645309,-567.6,0.00019178,2]
[333892657,1722606645318,-500.0,0.00019178,2]
[333892658,1722606645327,-1053.35,0.00019178,2]
[333892659,1722606645337,-2000.0,0.00019178,2]
[333892660,1722606645346,-500.0,0.00019178,2]
[333892661,1722606645356,-500.0,0.00019178,2]
[333892662,1722606645366,-508.43,0.00019178,2]
[333892663,1722606645376,-1761.09,0.00019178,2]
[333892664,1722606645385,-500.0,0.00019178,2]
[333892665,1722606645395,-500.0,0.00019178,2]
[333892666,1722606645405,-500.0,0.00019178,2]
[333892667,1722606645414,-505.02,0.00019178,2]
[333892668,1722606645424,-500.0,0.00019178,2]
[333892669,1722606645433,-290.41,0.00019178,2]
[333892670,1722606645443,-814.12,0.00019178,2]
[333892671,1722606645454,-500.0,0.00019178,2]
[333892672,1722606645463,-598.3,0.00019178,2]
[333892673,1722606645473,-500.0,0.00019178,2]
[333892674,1722606645482,-2454.35,0.00019178,2]
[333892675,1722606645492,-500.0,0.00019178,2]
[333892676,1722606645502,-669.74,0.00019178,2]
[333892677,1722606645511,-2168.75,0.00019178,2]
[333892678,1722606645521,-300.0,0.00019178,2]
[333892679,1722606645531,-500.0,0.00019178,2]
[333892680,1722606645540,-680.24,0.00019178,2]
[333892681,1722606645549,-1310.42,0.00019178,2]
[333892682,1722606645559,-1633.19,0.00019178,2]
[333892683,1722606645569,-500.0,0.00019178,2]
[333892684,1722606645578,-500.0,0.00019178,2]
[333892685,1722606645588,-1359.88,0.00019178,2]
[333892686,1722606645597,-761.74,0.00019178,2]
[333892687,1722606645607,-796.33,0.00019178,2]
[333892688,1722606645617,-1076.33,0.00019178,2]
[333892689,1722606645626,-785.04,0.00019178,2]
[333892690,1722606645636,-1081.4,0.00019178,2]
[333892691,1722606645645,-500.0,0.00019178,2]
[333892692,1722606645655,-500.0,0.00019178,2]
[333892693,1722606645664,-1991.63,0.00019178,2]
[333892694,1722606645674,-500.0,0.00019178,2]
[333892695,1722606645684,-500.0,0.00019178,2]
[333892696,1722606645694,-500.0,0.00019178,2]
[333892697,1722606645703,-909.15,0.00019178,2]
[333892698,1722606645713,-502.84,0.00019178,2]
[333892699,1722606645723,-592.5,0.00019178,2]
[333892700,1722606645732,-500.0,0.00019178,2]
[333892701,1722606645744,-500.0,0.00019178,2]
[333892702,1722606645753,-500.0,0.00019178,2]
[333892703,1722606645764,-500.0,0.00019178,2]
[333892704,1722606645774,-1079.51,0.00019178,2]
[333892705,1722606645892,-743.13,0.00019178,2]
[333892706,1722606645902,-755.55,0.00019178,2]
[333892707,1722606645911,-735.65,0.00019178,2]
[333892708,1722606645921,-500.0,0.00019178,2]
[333892709,1722606645930,-686.19,0.00019178,2]
[333892710,1722606645939,-644.03,0.00019178,2]
[333892711,1722606645948,-500.0,0.00019178,2]
[333892712,1722606645958,-1096.37,0.00019178,2]
[333892713,1722606645967,-720.93,0.00019178,2]
[333892714,1722606645976,-1036.05,0.00019178,2]
[333892715,1722606645985,-1268.8,0.00019178,2]
[333892716,1722606645998,-631.07,0.00019178,2]
[333892718,1722606646008,-1005.48,0.00019178,2]
[333892719,1722606646017,-2201.2,0.00019178,2]
[333892720,1722606646026,-2114.54,0.00019178,2]
[333892721,1722606646036,-1502.51,0.00019178,2]
[333892722,1722606646045,-3553.43,0.00019178,2]
[333892723,1722606646055,-881.54,0.00019178,2]
[333892724,1722606646065,-2415.1,0.00019178,2]
[333892725,1722606646074,-1853.39,0.00019178,2]
[333892727,1722606646084,-606.38,0.00019178,2]
[333892728,1722606646094,-993.48,0.00019178,2]
[333892730,1722606646103,-500.0,0.00019178,2]
[333892731,1722606646113,-1100.66,0.00019178,2]
[333892733,1722606646122,-500.0,0.00019178,2]
[333892735,1722606646132,-500.0,0.00019178,2]
[333892737,1722606646141,-1022.34,0.00019178,2]
[333892738,1722606646151,-500.0,0.00019178,2]
[333892739,1722606646161,-500.0,0.00019178,2]
[333892740,1722606646170,-616.3,0.00019178,2]
[333892741,1722606646179,-600.34,0.00019178,2]
[333892742,1722606646189,-1858.3,0.00019178,2]
[333892743,1722606646198,-1583.37,0.00019178,2]
[333892744,1722606646208,-500.0,0.00019178,2]
[333892745,1722606646218,-500.0,0.00019178,2]
[333892746,1722606646228,-500.0,0.00019178,2]
[333892747,1722606646238,-1208.24,0.00019178,2]
[333892748,1722606646251,-500.0,0.00019178,2]
[333892750,1722606646260,-1402.41,0.00019178,2]
[333892751,1722606646270,-500.0,0.00019178,2]
[333892753,1722606646280,-500.0,0.00019178,2]
[333892755,1722606646289,-1880.67,0.00019178,2]
[333892758,1722606646298,-1318.72,0.00019178,2]
[333892760,1722606646308,-500.0,0.00019178,2]
[333892762,1722606646318,-301.97612861,0.00019178,2]
[333892764,1722606646328,-500.0,0.00019178,2]
[333892766,1722606646337,-717.02,0.00019178,2]
[333892769,1722606646346,-506.22,0.00019178,2]
[333892772,1722606646357,-500.0,0.00019178,2]
[333892775,1722606646367,-500.0,0.00019178,2]
[333892778,1722606646377,-500.0,0.00019178,2]
[333892781,1722606646386,-567.78,0.00019178,2]
[333892784,1722606646396,-500.0,0.00019178,2]
[333892787,1722606646407,-2481.52,0.00019178,2]
[333892789,1722606646418,-996.29,0.00019178,2]
[333892791,1722606646428,-3308.68,0.00019178,2]
[333892793,1722606646439,-599.25,0.00019178,2]
[333892795,1722606646448,-809.97,0.00019178,2]
[333892797,1722606646458,-804.2,0.00019178,2]
[333892799,1722606646468,-1193.0,0.00019178,2]
[333892801,1722606646478,-500.0,0.00019178,2]
[333892802,1722606646488,-500.0,0.00019178,2]
[333892803,1722606646500,-500.0,0.00019178,2]
[333892804,1722606646510,-500.0,0.00019178,2]
[333892805,1722606646520,-1799.94,0.00019178,2]
[333892806,1722606646530,-500.0,0.00019178,2]
[333892807,1722606646539,-707.27,0.00019178,2]
[333892808,1722606646549,-500.0,0.00019178,2]
[333892809,1722606646559,-1215.43,0.00019178,2]
[333892810,1722606646570,-500.0,0.00019178,2]
[333892811,1722606646581,-500.0,0.00019178,2]
[333892812,1722606646591,-500.0,0.00019178,2]
[333892813,1722606646601,-1127.99,0.00019178,2]
[333892814,1722606646610,-232.0314738,0.00019178,2]
[333892815,1722606646620,-775.27,0.00019178,2]
[333892816,1722606646630,-500.0,0.00019178,2]
[333892817,1722606646639,-416.13412483,0.00019178,2]
[333892818,1722606646649,-500.0,0.00019178,2]
[333892819,1722606646659,-1376.54,0.00019178,2]
[333892820,1722606646668,-500.0,0.00019178,2]
[333892821,1722606646679,-500.0,0.00019178,2]
[333892822,1722606646688,-500.0,0.00019178,2]
[333892823,1722606646697,-500.0,0.00019178,2]
[333892824,1722606646707,-742.11,0.00019178,2]
[333892825,1722606646716,-2121.77,0.00019178,2]
[333892826,1722606646726,-500.0,0.00019178,2]
[333892827,1722606646735,-500.0,0.00019178,2]
[333892828,1722606646749,-500.0,0.00019178,2]
[333892829,1722606646758,-818.73,0.00019178,2]
[333892830,1722606646768,-2354.14,0.00019178,2]
[333892831,1722606646778,-612.42,0.00019178,2]
[333892832,1722606646788,-1169.45,0.00019178,2]
[333892833,1722606646797,-500.0,0.00019178,2]
[333892834,1722606646807,-500.0,0.00019178,2]
[333892835,1722606646816,-713.79,0.00019178,2]
[333892836,1722606646825,-1708.58,0.00019178,2]
[333892837,1722606646834,-500.0,0.00019178,2]
[333892838,1722606646844,-599.0,0.00019178,2]
[333892839,1722606646853,-1210.96,0.00019178,2]
[333892840,1722606646863,-500.0,0.00019178,2]
[333892841,1722606646872,-500.0,0.00019178,2]
[333892842,1722606646882,-500.0,0.00019178,2]
[333892843,1722606646891,-2419.64,0.00019178,2]
[333892844,1722606646900,-500.0,0.00019178,2]
[333892845,1722606646909,-2551.42,0.00019178,2]
[333892846,1722606646918,-531.61,0.00019178,2]
[333892847,1722606646928,-1550.32,0.00019178,2]
[333892848,1722606646937,-500.0,0.00019178,2]
[333892849,1722606646947,-500.0,0.00019178,2]
[333892850,1722606646956,-500.0,0.00019178,2]
[333892851,1722606646965,-826.62,0.00019178,2]
[333892852,1722606646974,-801.31,0.00019178,2]